[Event "Titled Tuesday Blitz January 03 Late 2023"]
[White "Garcia Ramos, Daniel"]
[Black "Baskakov, Egor"]
[WhiteFideId "32010311"]
[BlackFideId "24197866"]
[WhiteElo "2442"]
[BlackElo "2215"]
[Result "0-1"]
[Round "11"]
[TimeControl "180+2"]
[Date "2023.01.03"]
[WhiteClock "0:00:02"]
[BlackClock "0:00:07"]

1. b3 {[%clk 0:03:00]}  Nf6 {[%clk 0:02:59]} 2. Bb2 {[%clk 0:03:01]}  e6 {[%clk 0:03:00]} 3. Nf3 {[%clk 0:03:01]}  Be7 {[%clk 0:03:00]} 4. g3 {[%clk 0:03:02]}  O-O {[%clk 0:03:01]} 5. Bg2 {[%clk 0:03:03]}  d5 {[%clk 0:03:01]} 6. O-O {[%clk 0:03:03]}  c5 {[%clk 0:03:00]} 7. e3 {[%clk 0:03:02]}  Nc6 {[%clk 0:02:59]} 8. d3 {[%clk 0:03:01]}  b6 {[%clk 0:02:59]} 9. Nbd2 {[%clk 0:03:01]}  Bb7 {[%clk 0:02:57]} 10. a4 {[%clk 0:03:02]}  Qd7 {[%clk 0:02:55]} 11. h3 {[%clk 0:03:02]}  Rfd8 {[%clk 0:02:55]} 12. Qe2 {[%clk 0:03:02]}  Rac8 {[%clk 0:02:54]} 13. Rfd1 {[%clk 0:03:00]}  d4 {[%clk 0:02:51]} 14. e4 {[%clk 0:02:58]}  e5 {[%clk 0:02:49]} 15. Nc4 {[%clk 0:02:57]}  Qc7 {[%clk 0:02:49]} 16. Rf1 {[%clk 0:02:56]}  Ne8 {[%clk 0:02:49]} 17. Nh2 {[%clk 0:02:54]}  Nd6 {[%clk 0:02:48]} 18. f4 {[%clk 0:02:53]}  Nxc4 {[%clk 0:02:48]} 19. bxc4 {[%clk 0:02:53]}  Bd6 {[%clk 0:02:44]} 20. f5 {[%clk 0:02:48]}  f6 {[%clk 0:02:45]} 21. g4 {[%clk 0:02:44]}  Ra8 {[%clk 0:02:33]} 22. h4 {[%clk 0:02:43]}  a6 {[%clk 0:02:33]} 23. g5 {[%clk 0:02:39]}  Kh8 {[%clk 0:02:29]} 24. Qh5 {[%clk 0:02:36]}  Ne7 {[%clk 0:02:14]} 25. Ng4 {[%clk 0:02:33]}  Ng8 {[%clk 0:02:14]} 26. g6 {[%clk 0:02:26]}  h6 {[%clk 0:02:14]} 27. Bc1 {[%clk 0:02:24]}  Bf8 {[%clk 0:02:14]} 28. Bd2 {[%clk 0:02:22]}  Bc6 {[%clk 0:02:07]} 29. Rfb1 {[%clk 0:02:10]}  Rdb8 {[%clk 0:02:06]} 30. Bf3 {[%clk 0:02:06]}  Qd7 {[%clk 0:02:04]} 31. Rb2 {[%clk 0:01:42]}  Bxa4 {[%clk 0:01:58]} 32. Rba2 {[%clk 0:01:42]}  b5 {[%clk 0:01:29]} 33. Nf2 {[%clk 0:01:41]}  Rb7 {[%clk 0:01:24]} 34. Kg2 {[%clk 0:01:20]}  Rab8 {[%clk 0:01:22]} 35. Kg3 {[%clk 0:01:15]}  Qd8 {[%clk 0:01:11]} 36. Nd1 {[%clk 0:01:05]}  Bd6 {[%clk 0:01:04]} 37. Kg2 {[%clk 0:01:02]}  Bc7 {[%clk 0:01:03]} 38. Nf2 {[%clk 0:01:02]}  Ba5 {[%clk 0:01:02]} 39. cxb5 {[%clk 0:00:56]}  axb5 {[%clk 0:01:00]} 40. Bc1 {[%clk 0:00:55]}  Bc3 {[%clk 0:00:59]} 41. Rb1 {[%clk 0:00:52]}  Ba5 {[%clk 0:00:37]} 42. Ng4 {[%clk 0:00:49]}  Qf8 {[%clk 0:00:37]} 43. Ba3 {[%clk 0:00:44]}  Bb4 {[%clk 0:00:35]} 44. Bxb4 {[%clk 0:00:39]}  cxb4 {[%clk 0:00:36]} 45. Bd1 {[%clk 0:00:39]}  Rc8 {[%clk 0:00:33]} 46. Nf2 {[%clk 0:00:35]}  Rbc7 {[%clk 0:00:34]} 47. Qe2 {[%clk 0:00:32]}  Rc3 {[%clk 0:00:30]} 48. Rab2 {[%clk 0:00:28]}  Qc5 {[%clk 0:00:24]} 49. Rxb4 {[%clk 0:00:22]}  Ra3 {[%clk 0:00:17]} 50. R4b2 {[%clk 0:00:19]}  Qc3 {[%clk 0:00:16]} 51. Nh3 {[%clk 0:00:17]}  Ra1 {[%clk 0:00:16]} 52. Ng1 {[%clk 0:00:07]}  Rxb1 {[%clk 0:00:15]} 53. Rxb1 {[%clk 0:00:08]}  Qa3 {[%clk 0:00:09]} 54. Nf3 {[%clk 0:00:05]}  Qa2 {[%clk 0:00:09]} 55. Rc1 {[%clk 0:00:04]}  Rc5 {[%clk 0:00:09]} 56. Ne1 {[%clk 0:00:04]}  Qa3 {[%clk 0:00:09]} 57. Qd2 {[%clk 0:00:04]}  Rc3 {[%clk 0:00:08]} 58. Kf2 {[%clk 0:00:04]}  Qc5 {[%clk 0:00:08]} 59. Rb1 {[%clk 0:00:03]}  Ne7 {[%clk 0:00:08]} 60. Ke2 {[%clk 0:00:03]}  Nc6 {[%clk 0:00:08]} 61. Kf2 {[%clk 0:00:04]}  Nb4 {[%clk 0:00:09]} 62. Qc1 {[%clk 0:00:04]}  Nxc2 {[%clk 0:00:06]} 63. Bxc2 {[%clk 0:00:01]}  Bxc2 {[%clk 0:00:07]} 64. Qd2 {[%clk 0:00:02]}  Bxb1 {[%clk 0:00:07]} 0-1


[Site "https://www.chess.com"]

[Event "Titled Tuesday Blitz January 03 Late 2023"]
[White "Kobalia, Mikhail"]
[Black "Przybylski, Wojciech"]
[WhiteFideId "4119150"]
[BlackFideId "1117599"]
[WhiteElo "2578"]
[BlackElo "2321"]
[Result "1/2-1/2"]
[Round "11"]
[TimeControl "180+2"]
[Date "2023.01.03"]
[WhiteClock "0:00:12"]
[BlackClock "0:00:08"]

1. e4 {[%clk 0:03:00]}  e5 {[%clk 0:02:58]} 2. Nf3 {[%clk 0:03:00]}  Nc6 {[%clk 0:02:59]} 3. Bb5 {[%clk 0:03:00]}  Nf6 {[%clk 0:02:59]} 4. d3 {[%clk 0:03:00]}  d6 {[%clk 0:02:59]} 5. O-O {[%clk 0:02:59]}  Be7 {[%clk 0:02:58]} 6. Re1 {[%clk 0:02:58]}  O-O {[%clk 0:02:58]} 7. Bxc6 {[%clk 0:02:57]}  bxc6 {[%clk 0:02:58]} 8. d4 {[%clk 0:02:58]}  exd4 {[%clk 0:02:52]} 9. Nxd4 {[%clk 0:02:58]}  Bd7 {[%clk 0:02:51]} 10. Nc3 {[%clk 0:02:57]}  Re8 {[%clk 0:02:49]} 11. Bf4 {[%clk 0:02:57]}  c5 {[%clk 0:02:35]} 12. Nde2 {[%clk 0:02:56]}  Ng4 {[%clk 0:02:24]} 13. Nd5 {[%clk 0:02:46]}  Bf8 {[%clk 0:02:20]} 14. h3 {[%clk 0:02:37]}  Ne5 {[%clk 0:02:18]} 15. b3 {[%clk 0:02:36]}  Ng6 {[%clk 0:02:09]} 16. Qd3 {[%clk 0:02:27]}  Nxf4 {[%clk 0:02:05]} 17. Nexf4 {[%clk 0:02:27]}  c6 {[%clk 0:01:54]} 18. Ne3 {[%clk 0:02:23]}  Qf6 {[%clk 0:01:37]} 19. Ne2 {[%clk 0:02:22]}  Qg6 {[%clk 0:01:29]} 20. Ng3 {[%clk 0:02:19]}  Qf6 {[%clk 0:01:26]} 21. Rad1 {[%clk 0:02:16]}  Rad8 {[%clk 0:01:23]} 22. Nc4 {[%clk 0:02:08]}  d5 {[%clk 0:00:24]} 23. exd5 {[%clk 0:02:06]}  cxd5 {[%clk 0:00:24]} 24. Rxe8 {[%clk 0:01:34]}  Bxe8 {[%clk 0:00:23]} 25. Ne3 {[%clk 0:01:33]}  d4 {[%clk 0:00:22]} 26. Nc4 {[%clk 0:01:30]}  Bc6 {[%clk 0:00:21]} 27. Re1 {[%clk 0:01:26]}  g6 {[%clk 0:00:21]} 28. Ne4 {[%clk 0:01:25]}  Qf4 {[%clk 0:00:19]} 29. f3 {[%clk 0:01:15]}  Bg7 {[%clk 0:00:19]} 30. Nxc5 {[%clk 0:01:12]}  h5 {[%clk 0:00:17]} 31. Qd2 {[%clk 0:00:50]}  Qh4 {[%clk 0:00:17]} 32. Qf2 {[%clk 0:00:48]}  Qg5 {[%clk 0:00:16]} 33. Ne4 {[%clk 0:00:48]}  Qf4 {[%clk 0:00:14]} 34. Qd2 {[%clk 0:00:43]}  Qxd2 {[%clk 0:00:12]} 35. Ncxd2 {[%clk 0:00:39]}  d3 {[%clk 0:00:12]} 36. cxd3 {[%clk 0:00:36]}  Rxd3 {[%clk 0:00:11]} 37. Nc4 {[%clk 0:00:36]}  Bd4+ {[%clk 0:00:10]} 38. Kh2 {[%clk 0:00:35]}  Kg7 {[%clk 0:00:09]} 39. Re2 {[%clk 0:00:31]}  f5 {[%clk 0:00:09]} 40. Ng5 {[%clk 0:00:28]}  Bf6 {[%clk 0:00:09]} 41. Ne6+ {[%clk 0:00:26]}  Kf7 {[%clk 0:00:09]} 42. Nf4 {[%clk 0:00:22]}  Rd4 {[%clk 0:00:09]} 43. Ne6 {[%clk 0:00:19]}  Rd1 {[%clk 0:00:07]} 44. f4 {[%clk 0:00:15]}  Bb5 {[%clk 0:00:07]} 45. Ng5+ {[%clk 0:00:13]}  Bxg5 {[%clk 0:00:07]} 46. fxg5 {[%clk 0:00:14]}  Bxc4 {[%clk 0:00:07]} 47. bxc4 {[%clk 0:00:14]}  Rc1 {[%clk 0:00:08]} 48. Re5 {[%clk 0:00:13]}  Rxc4 {[%clk 0:00:08]} 49. Ra5 {[%clk 0:00:13]}  Rc7 {[%clk 0:00:08]} 50. Ra6 {[%clk 0:00:14]}  Re7 {[%clk 0:00:08]} 51. Kg3 {[%clk 0:00:14]}  Kg7 {[%clk 0:00:07]} 52. Kf4 {[%clk 0:00:14]}  Re4+ {[%clk 0:00:08]} 53. Kf3 {[%clk 0:00:14]}  Re7 {[%clk 0:00:08]} 54. g3 {[%clk 0:00:14]}  Rd7 {[%clk 0:00:08]} 55. Rc6 {[%clk 0:00:13]}  Re7 {[%clk 0:00:08]} 56. Ra6 {[%clk 0:00:13]}  Kf7 {[%clk 0:00:08]} 57. Kf4 {[%clk 0:00:12]}  Kg7 {[%clk 0:00:08]} 58. Kf3 {[%clk 0:00:12]} 1/2-1/2


[Site "https://www.chess.com"]

[Event "Titled Tuesday Blitz January 03 Late 2023"]
[White "Sai Krishna G V"]
[Black "Zhigalko, Sergei"]
[WhiteFideId "5028280"]
[BlackFideId "13502956"]
[WhiteElo "2384"]
[BlackElo "2572"]
[Result "1/2-1/2"]
[Round "11"]
[TimeControl "180+2"]
[Date "2023.01.03"]
[WhiteClock "0:00:15"]
[BlackClock "0:00:05"]

1. e4 {[%clk 0:03:00]}  c5 {[%clk 0:03:00]} 2. Nf3 {[%clk 0:03:01]}  Nc6 {[%clk 0:03:00]} 3. Nc3 {[%clk 0:03:01]}  Nf6 {[%clk 0:03:00]} 4. Bb5 {[%clk 0:03:01]}  Qc7 {[%clk 0:03:00]} 5. O-O {[%clk 0:02:59]}  Nd4 {[%clk 0:03:01]} 6. Nxd4 {[%clk 0:02:47]}  cxd4 {[%clk 0:03:01]} 7. Nd5 {[%clk 0:02:48]}  Nxd5 {[%clk 0:03:02]} 8. exd5 {[%clk 0:02:49]}  Qc5 {[%clk 0:03:03]} 9. Qe2 {[%clk 0:02:47]}  Qxd5 {[%clk 0:03:01]} 10. Bc4 {[%clk 0:02:42]}  Qf5 {[%clk 0:03:01]} 11. Bd3 {[%clk 0:02:39]}  Qf6 {[%clk 0:02:50]} 12. b3 {[%clk 0:02:30]}  e6 {[%clk 0:02:50]} 13. Bb2 {[%clk 0:02:30]}  Bc5 {[%clk 0:02:48]} 14. Rae1 {[%clk 0:02:24]}  d6 {[%clk 0:02:38]} 15. f4 {[%clk 0:02:16]}  O-O {[%clk 0:02:36]} 16. Qh5 {[%clk 0:02:14]}  g6 {[%clk 0:02:32]} 17. Qh6 {[%clk 0:02:12]}  Bd7 {[%clk 0:02:29]} 18. Rf3 {[%clk 0:02:11]}  a5 {[%clk 0:02:23]} 19. a4 {[%clk 0:02:06]}  Rac8 {[%clk 0:02:21]} 20. g4 {[%clk 0:01:53]}  Bc6 {[%clk 0:02:16]} 21. Rh3 {[%clk 0:01:49]}  Qg7 {[%clk 0:02:16]} 22. Qh4 {[%clk 0:01:49]}  Bd5 {[%clk 0:02:06]} 23. Kf2 {[%clk 0:01:42]}  f5 {[%clk 0:02:05]} 24. gxf5 {[%clk 0:01:13]}  exf5 {[%clk 0:01:58]} 25. Qg5 {[%clk 0:00:51]}  Rce8 {[%clk 0:01:57]} 26. Rg1 {[%clk 0:00:51]}  Re6 {[%clk 0:01:24]} 27. Rhg3 {[%clk 0:00:45]}  Rfe8 {[%clk 0:01:13]} 28. Qxf5 {[%clk 0:00:36]}  Be4 {[%clk 0:00:37]} 29. Qg4 {[%clk 0:00:32]}  Qf6 {[%clk 0:00:23]} 30. f5 {[%clk 0:00:22]}  Bxf5 {[%clk 0:00:22]} 31. Bxf5 {[%clk 0:00:22]}  Re2+ {[%clk 0:00:20]} 32. Qxe2 {[%clk 0:00:15]}  Rxe2+ {[%clk 0:00:06]} 33. Kxe2 {[%clk 0:00:15]}  d3+ {[%clk 0:00:06]} 34. Bxd3 {[%clk 0:00:13]}  Qxb2 {[%clk 0:00:05]} 35. Rf1 {[%clk 0:00:14]}  Qe5+ {[%clk 0:00:04]} 36. Kd1 {[%clk 0:00:14]}  Qa1+ {[%clk 0:00:04]} 37. Ke2 {[%clk 0:00:14]}  Qe5+ {[%clk 0:00:04]} 38. Kd1 {[%clk 0:00:14]}  Qb2 {[%clk 0:00:03]} 39. Bc4+ {[%clk 0:00:12]}  Kg7 {[%clk 0:00:03]} 40. Rf7+ {[%clk 0:00:13]}  Kh6 {[%clk 0:00:04]} 41. Rh3+ {[%clk 0:00:13]}  Kg5 {[%clk 0:00:04]} 42. Rg3+ {[%clk 0:00:14]}  Kh6 {[%clk 0:00:04]} 43. Rh3+ {[%clk 0:00:14]}  Kg5 {[%clk 0:00:05]} 44. Rg3+ {[%clk 0:00:15]}  Kh6 {[%clk 0:00:05]} 1/2-1/2


[Site "https://www.chess.com"]

[Event "Titled Tuesday Blitz January 03 Late 2023"]
[White "Chen, Justin"]
[Black "Pichot, Alan"]
[WhiteFideId "2098199"]
[BlackFideId "110973"]
[WhiteElo "2333"]
[BlackElo "2638"]
[Result "0-1"]
[Round "11"]
[TimeControl "180+2"]
[Date "2023.01.03"]
[WhiteClock "0:00:01"]
[BlackClock "0:00:05"]

1. c4 {[%clk 0:03:00]}  c5 {[%clk 0:02:44]} 2. Nc3 {[%clk 0:03:00]}  Nc6 {[%clk 0:02:44]} 3. g3 {[%clk 0:03:00]}  g6 {[%clk 0:02:45]} 4. Bg2 {[%clk 0:03:01]}  Bg7 {[%clk 0:02:45]} 5. Rb1 {[%clk 0:03:01]}  Nf6 {[%clk 0:02:45]} 6. a3 {[%clk 0:03:02]}  O-O {[%clk 0:02:41]} 7. b4 {[%clk 0:03:02]}  d6 {[%clk 0:02:42]} 8. Nf3 {[%clk 0:03:01]}  Rb8 {[%clk 0:02:37]} 9. O-O {[%clk 0:03:01]}  b6 {[%clk 0:02:37]} 10. d3 {[%clk 0:02:56]}  Bb7 {[%clk 0:02:33]} 11. Qb3 {[%clk 0:02:51]}  Nd4 {[%clk 0:02:29]} 12. Nxd4 {[%clk 0:02:48]}  cxd4 {[%clk 0:02:30]} 13. Nd5 {[%clk 0:02:45]}  Nxd5 {[%clk 0:02:23]} 14. cxd5 {[%clk 0:02:46]}  Rc8 {[%clk 0:02:24]} 15. Bb2 {[%clk 0:02:39]}  Qd7 {[%clk 0:02:20]} 16. Rfc1 {[%clk 0:02:38]}  b5 {[%clk 0:02:13]} 17. Rc2 {[%clk 0:01:47]}  Rxc2 {[%clk 0:02:07]} 18. Qxc2 {[%clk 0:01:48]}  Rc8 {[%clk 0:02:07]} 19. Qd2 {[%clk 0:01:48]}  Qf5 {[%clk 0:02:06]} 20. Be4 {[%clk 0:01:40]}  Qh5 {[%clk 0:01:59]} 21. Bf3 {[%clk 0:01:25]}  Qe5 {[%clk 0:01:57]} 22. Rc1 {[%clk 0:00:40]}  Rxc1+ {[%clk 0:01:35]} 23. Qxc1 {[%clk 0:00:40]}  Bxd5 {[%clk 0:01:34]} 24. Qc8+ {[%clk 0:00:40]}  Bf8 {[%clk 0:01:34]} 25. Bc1 {[%clk 0:00:40]}  g5 {[%clk 0:01:22]} 26. Bxd5 {[%clk 0:00:21]}  Qxd5 {[%clk 0:01:23]} 27. Qg4 {[%clk 0:00:21]}  h6 {[%clk 0:01:11]} 28. h4 {[%clk 0:00:20]}  Qc6 {[%clk 0:00:56]} 29. Bb2 {[%clk 0:00:15]}  e5 {[%clk 0:00:36]} 30. hxg5 {[%clk 0:00:15]}  Qc2 {[%clk 0:00:22]} 31. gxh6+ {[%clk 0:00:13]}  Kh8 {[%clk 0:00:23]} 32. Qf5 {[%clk 0:00:02]}  Qxb2 {[%clk 0:00:21]} 33. Qf6+ {[%clk 0:00:01]}  Kg8 {[%clk 0:00:22]} 34. h7+ {[%clk 0:00:02]}  Kxh7 {[%clk 0:00:21]} 35. Qxf7+ {[%clk 0:00:02]}  Bg7 {[%clk 0:00:16]} 36. Qh5+ {[%clk 0:00:02]}  Bh6 {[%clk 0:00:10]} 37. Qf7+ {[%clk 0:00:02]}  Kh8 {[%clk 0:00:10]} 38. Qf6+ {[%clk 0:00:02]}  Bg7 {[%clk 0:00:10]} 39. Qh4+ {[%clk 0:00:02]}  Kg8 {[%clk 0:00:10]} 40. Qd8+ {[%clk 0:00:02]}  Kf7 {[%clk 0:00:11]} 41. Qd7+ {[%clk 0:00:03]}  Kg6 {[%clk 0:00:11]} 42. Qe6+ {[%clk 0:00:02]}  Bf6 {[%clk 0:00:10]} 43. Qg8+ {[%clk 0:00:01]}  Kf5 {[%clk 0:00:10]} 44. Qh7+ {[%clk 0:00:01]}  Ke6 {[%clk 0:00:10]} 45. Qg8+ {[%clk 0:00:02]}  Kd7 {[%clk 0:00:11]} 46. Qg4+ {[%clk 0:00:02]}  Kc7 {[%clk 0:00:09]} 47. Qe6 {[%clk 0:00:02]}  Qc1+ {[%clk 0:00:08]} 48. Kg2 {[%clk 0:00:03]}  Qg5 {[%clk 0:00:08]} 49. Qd5 {[%clk 0:00:02]}  Qf5 {[%clk 0:00:04]} 50. Qxb5 {[%clk 0:00:01]}  Qd7 {[%clk 0:00:05]} 51. Qa5+ {[%clk 0:00:01]}  Kc8 {[%clk 0:00:05]} 0-1


[Site "https://www.chess.com"]

[Event "Titled Tuesday Blitz January 03 Late 2023"]
[White "Klose, Eli"]
[Black "Tanenbaum, Zachary"]
[WhiteFideId "16242955"]
[BlackFideId "2060850"]
[WhiteElo "1519"]
[BlackElo "2261"]
[Result "1/2-1/2"]
[Round "11"]
[TimeControl "180+2"]
[Date "2023.01.03"]
[WhiteClock "0:00:08"]
[BlackClock "0:00:05"]

1. e4 {[%clk 0:03:00]}  e5 {[%clk 0:02:59]} 2. Nf3 {[%clk 0:02:48]}  Nc6 {[%clk 0:02:59]} 3. d4 {[%clk 0:02:48]}  exd4 {[%clk 0:02:59]} 4. Bc4 {[%clk 0:02:48]}  Nf6 {[%clk 0:02:59]} 5. O-O {[%clk 0:02:47]}  Nxe4 {[%clk 0:02:58]} 6. Re1 {[%clk 0:02:47]}  d5 {[%clk 0:02:58]} 7. Bxd5 {[%clk 0:02:48]}  Qxd5 {[%clk 0:02:59]} 8. Nc3 {[%clk 0:02:48]}  Qa5 {[%clk 0:02:59]} 9. Nxe4 {[%clk 0:02:47]}  Be6 {[%clk 0:02:59]} 10. Neg5 {[%clk 0:02:47]}  O-O-O {[%clk 0:02:58]} 11. Nxe6 {[%clk 0:02:47]}  fxe6 {[%clk 0:02:58]} 12. Rxe6 {[%clk 0:02:48]}  Qh5 {[%clk 0:02:59]} 13. Qe2 {[%clk 0:02:47]}  Bd6 {[%clk 0:02:52]} 14. h3 {[%clk 0:02:46]}  Rde8 {[%clk 0:02:23]} 15. Bd2 {[%clk 0:02:39]}  h6 {[%clk 0:01:58]} 16. Re1 {[%clk 0:02:37]}  Rxe6 {[%clk 0:01:30]} 17. Qxe6+ {[%clk 0:02:35]}  Kd8 {[%clk 0:01:30]} 18. a3 {[%clk 0:02:18]}  Re8 {[%clk 0:01:27]} 19. Qg4 {[%clk 0:01:34]}  Rxe1+ {[%clk 0:01:24]} 20. Bxe1 {[%clk 0:01:28]}  Qxg4 {[%clk 0:01:24]} 21. hxg4 {[%clk 0:01:29]}  Ke7 {[%clk 0:01:20]} 22. Kf1 {[%clk 0:01:26]}  Ke6 {[%clk 0:01:20]} 23. Ke2 {[%clk 0:01:25]}  Kd5 {[%clk 0:01:20]} 24. Bd2 {[%clk 0:01:21]}  Ne7 {[%clk 0:01:12]} 25. Nh4 {[%clk 0:01:12]}  c5 {[%clk 0:01:11]} 26. g5 {[%clk 0:01:00]}  hxg5 {[%clk 0:01:08]} 27. Bxg5 {[%clk 0:01:00]}  Nc6 {[%clk 0:01:02]} 28. Nf5 {[%clk 0:00:54]}  Bf8 {[%clk 0:00:56]} 29. b3 {[%clk 0:00:52]}  b5 {[%clk 0:00:56]} 30. Nh4 {[%clk 0:00:32]}  c4 {[%clk 0:00:50]} 31. bxc4+ {[%clk 0:00:28]}  bxc4 {[%clk 0:00:50]} 32. a4 {[%clk 0:00:28]}  Kc5 {[%clk 0:00:32]} 33. Ng6 {[%clk 0:00:25]}  Bd6 {[%clk 0:00:31]} 34. Bf4 {[%clk 0:00:25]}  Bxf4 {[%clk 0:00:26]} 35. Nxf4 {[%clk 0:00:26]}  Kb4 {[%clk 0:00:20]} 36. Ne6 {[%clk 0:00:24]}  g6 {[%clk 0:00:19]} 37. Nf4 {[%clk 0:00:23]}  Ne5 {[%clk 0:00:18]} 38. Ne6 {[%clk 0:00:19]}  Kc3 {[%clk 0:00:08]} 39. Kd1 {[%clk 0:00:18]}  d3 {[%clk 0:00:06]} 40. cxd3 {[%clk 0:00:18]}  Nxd3 {[%clk 0:00:05]} 41. f4 {[%clk 0:00:17]}  Nb2+ {[%clk 0:00:05]} 42. Ke2 {[%clk 0:00:16]}  Nxa4 {[%clk 0:00:06]} 43. g4 {[%clk 0:00:16]}  Nb6 {[%clk 0:00:05]} 44. f5 {[%clk 0:00:17]}  gxf5 {[%clk 0:00:06]} 45. g5 {[%clk 0:00:18]}  Nd5 {[%clk 0:00:06]} 46. g6 {[%clk 0:00:16]}  Nf6 {[%clk 0:00:06]} 47. Nc5 {[%clk 0:00:16]}  a5 {[%clk 0:00:04]} 48. g7 {[%clk 0:00:16]}  Kb2 {[%clk 0:00:04]} 49. Ke3 {[%clk 0:00:15]}  c3 {[%clk 0:00:04]} 50. Na4+ {[%clk 0:00:09]}  Kb3 {[%clk 0:00:03]} 51. Nc5+ {[%clk 0:00:09]}  Kc4 {[%clk 0:00:02]} 52. Nd3 {[%clk 0:00:08]}  a4 {[%clk 0:00:02]} 53. Nc1 {[%clk 0:00:07]}  a3 {[%clk 0:00:01]} 54. Kf4 {[%clk 0:00:07]}  Kb4 {[%clk 0:00:02]} 55. Kxf5 {[%clk 0:00:06]}  Ng8 {[%clk 0:00:03]} 56. Kg6 {[%clk 0:00:07]}  c2 {[%clk 0:00:03]} 57. Kf7 {[%clk 0:00:07]}  Nh6+ {[%clk 0:00:04]} 58. Kg6 {[%clk 0:00:08]}  Ng8 {[%clk 0:00:04]} 59. Kf7 {[%clk 0:00:08]}  Nh6+ {[%clk 0:00:04]} 60. Kg6 {[%clk 0:00:08]}  Ng8 {[%clk 0:00:05]} 1/2-1/2


[Site "https://www.chess.com"]

[Event "Titled Tuesday Blitz January 03 Late 2023"]
[White "Salimova, Nurgyul"]
[Black "Martins, Bruno Andre Leite"]
[WhiteFideId "2915138"]
[BlackFideId "1942255"]
[WhiteElo "2391"]
[BlackElo "2348"]
[Result "1-0"]
[Round "11"]
[TimeControl "180+2"]
[Date "2023.01.03"]
[WhiteClock "0:01:20"]
[BlackClock "0:00:53"]

1. e4 {[%clk 0:03:00]}  e6 {[%clk 0:02:58]} 2. d4 {[%clk 0:03:00]}  d5 {[%clk 0:02:59]} 3. Nc3 {[%clk 0:03:00]}  Nf6 {[%clk 0:02:57]} 4. e5 {[%clk 0:02:59]}  Nfd7 {[%clk 0:02:58]} 5. f4 {[%clk 0:02:58]}  c5 {[%clk 0:02:59]} 6. Nf3 {[%clk 0:02:59]}  Nc6 {[%clk 0:03:00]} 7. Be3 {[%clk 0:02:58]}  a6 {[%clk 0:02:59]} 8. a3 {[%clk 0:02:55]}  Be7 {[%clk 0:02:57]} 9. Qd2 {[%clk 0:02:51]}  O-O {[%clk 0:02:56]} 10. Be2 {[%clk 0:02:50]}  b5 {[%clk 0:02:56]} 11. O-O {[%clk 0:02:47]}  Qb6 {[%clk 0:02:56]} 12. Nd1 {[%clk 0:02:45]}  cxd4 {[%clk 0:02:30]} 13. Nxd4 {[%clk 0:02:44]}  Nxd4 {[%clk 0:02:27]} 14. Bxd4 {[%clk 0:02:45]}  Bc5 {[%clk 0:02:27]} 15. c3 {[%clk 0:02:44]}  Bxd4+ {[%clk 0:02:26]} 16. cxd4 {[%clk 0:02:43]}  f5 {[%clk 0:02:26]} 17. Ne3 {[%clk 0:02:37]}  Nb8 {[%clk 0:02:17]} 18. Rac1 {[%clk 0:02:32]}  Nc6 {[%clk 0:02:16]} 19. Rc5 {[%clk 0:02:32]}  Bd7 {[%clk 0:02:13]} 20. Rfc1 {[%clk 0:02:29]}  Rac8 {[%clk 0:02:11]} 21. b4 {[%clk 0:02:26]}  Kh8 {[%clk 0:01:58]} 22. Kf2 {[%clk 0:02:17]}  Rg8 {[%clk 0:01:56]} 23. h4 {[%clk 0:02:13]}  g6 {[%clk 0:01:54]} 24. Nf1 {[%clk 0:01:54]}  h5 {[%clk 0:01:52]} 25. Nh2 {[%clk 0:01:51]}  Kg7 {[%clk 0:01:51]} 26. Nf3 {[%clk 0:01:49]}  Kf7 {[%clk 0:01:52]} 27. Ke3 {[%clk 0:01:47]}  Ke7 {[%clk 0:01:52]} 28. R1c3 {[%clk 0:01:45]}  Rc7 {[%clk 0:01:51]} 29. Qc1 {[%clk 0:01:45]}  Rgc8 {[%clk 0:01:50]} 30. Qe1 {[%clk 0:01:44]}  Nd8 {[%clk 0:01:42]} 31. Qg3 {[%clk 0:01:42]}  Be8 {[%clk 0:01:29]} 32. Qg5+ {[%clk 0:01:40]}  Kd7 {[%clk 0:01:30]} 33. Qf6 {[%clk 0:01:35]}  Rxc5 {[%clk 0:01:26]} 34. dxc5 {[%clk 0:01:34]}  d4+ {[%clk 0:01:05]} 35. Nxd4 {[%clk 0:01:33]}  Qb8 {[%clk 0:00:58]} 36. c6+ {[%clk 0:01:21]}  Kc7 {[%clk 0:00:58]} 37. Qe7+ {[%clk 0:01:20]}  Kb6 {[%clk 0:00:55]} 38. Qc5+ {[%clk 0:01:19]}  Kc7 {[%clk 0:00:55]} 39. Qd6+ {[%clk 0:01:19]}  Kb6 {[%clk 0:00:53]} 40. c7+ {[%clk 0:01:20]} 1-0


[Site "https://www.chess.com"]